fUSD/lending_fUSD_20240114
["ID","MTS","AMOUNT","RATE_DAILY","PERIOD"]
[311571050,1705252266192,-506.23333083,0.0003041,2]
[311571051,1705252266202,-4003.21,0.0003041,2]
[311571052,1705252266211,-500.0,0.0003041,2]
[311571053,1705252266221,-1017.91,0.0003041,2]
[311571054,1705252266231,-1037.88,0.0003041,2]
[311571055,1705252266242,-1446.34,0.0003041,2]
[311571056,1705252266252,-1493.77,0.0003041,2]
[311571057,1705252266261,-410.10212185,0.0003041,2]
[311571058,1705252266271,-2318.96,0.0003041,2]
[311571059,1705252266281,-972.67,0.0003041,2]
[311571060,1705252266291,-643.64,0.0003041,2]
[311571061,1705252266301,-500.0,0.0003041,2]
[311571062,1705252266311,-500.0,0.0003041,2]
[311571063,1705252266321,-846.51,0.0003041,2]
[311571064,1705252266331,-500.0,0.0003041,2]
[311571065,1705252266341,-500.0,0.0003041,2]
[311571066,1705252266351,-4387.39,0.0003041,2]
[311571067,1705252266362,-500.0,0.0003041,2]
[311571068,1705252266372,-500.0,0.0003041,2]
[311571069,1705252266382,-603.75,0.0003041,2]
[311571070,1705252266391,-1632.29,0.0003041,2]
[311571071,1705252266401,-1885.84,0.0003041,2]
[311571072,1705252266411,-500.0,0.0003041,2]
[311571073,1705252266420,-500.0,0.0003041,2]
[311571074,1705252266431,-4784.66,0.0003041,2]
[311571075,1705252266442,-363.84511599,0.0003041,2]
[311571076,1705252266452,-832.48,0.0003041,2]
[311571077,1705252266463,-573.2,0.0003041,2]
[311571078,1705252266474,-1240.53,0.0003041,2]
[311571079,1705252266484,-500.0,0.0003041,2]
[311571080,1705252266496,-500.0,0.0003041,2]
[311571081,1705252266507,-500.0,0.0003041,2]
[311571082,1705252266516,-3081.64,0.0003041,2]
[311571083,1705252266527,-3159.92,0.0003041,2]
[311571084,1705252266536,-500.0,0.0003041,2]
[311571085,1705252266546,-675.96,0.0003041,2]
[311571086,1705252266556,-503.36162886,0.0003041,2]
[311571087,1705252266566,-679.17,0.0003041,2]
[311571088,1705252266576,-13784.05,0.0003041,2]
[311571089,1705252266587,-1529.04,0.0003041,2]
[311571090,1705252266598,-500.0,0.0003041,2]
[311571091,1705252266607,-500.0,0.0003041,2]
[311571092,1705252266618,-2924.52,0.0003041,2]
[311571093,1705252266629,-2597.16,0.0003041,2]
[311571094,1705252266641,-2132.34,0.0003041,2]
[311571095,1705252266651,-718.21,0.0003041,2]
[311571096,1705252266663,-1549.0,0.0003041,2]
[311571097,1705252266674,-1113.77,0.0003041,2]
[311571098,1705252266685,-1085.96,0.0003041,2]
[311571099,1705252266696,-1421.58,0.0003041,2]
[311571100,1705252266708,-500.0,0.0003041,2]
[311571101,1705252266719,-3238.3,0.0003041,2]
[311571102,1705252266730,-1678.41,0.0003041,2]
[311571103,1705252266747,-500.0,0.0003041,2]
[311571104,1705252266757,-500.0,0.0003041,2]
[311571105,1705252266768,-4880.1,0.0003041,2]
[311571106,1705252266778,-500.0,0.0003041,2]
[311571107,1705252266788,-500.0,0.0003041,2]
[311571108,1705252266799,-500.0,0.0003041,2]
[311571109,1705252266809,-500.0,0.0003041,2]
[311571110,1705252266820,-500.0,0.0003041,2]
[311571111,1705252266831,-540.27,0.0003041,2]
[311571112,1705252266841,-1460.86,0.0003041,2]
[311571113,1705252266851,-21061.43,0.0003041,2]
[311571114,1705252266861,-1487.5,0.0003041,2]
[311571115,1705252266871,-1673.61,0.0003041,2]
[311571116,1705252266881,-1765.87,0.0003041,2]
[311571117,1705252266891,-500.0,0.0003041,2]
[311571118,1705252266901,-500.0,0.0003041,2]
[311571119,1705252266912,-500.0,0.0003041,2]
[311571120,1705252266922,-649.52,0.0003041,2]
[311571121,1705252266932,-500.0,0.0003041,2]
[311571122,1705252266942,-500.0,0.0003041,2]
[311571123,1705252266952,-1920.25,0.0003041,2]
[311571124,1705252266962,-500.0,0.0003041,2]
[311571125,1705252266972,-1168.62,0.0003041,2]
[311571126,1705252266982,-5619.76,0.0003041,2]
[311571127,1705252266993,-500.0,0.0003041,2]
[311571128,1705252267002,-500.0,0.0003041,2]
[311571129,1705252267012,-3856.99,0.0003041,2]
[311571130,1705252267022,-500.0,0.0003041,2]
[311571131,1705252267031,-500.0,0.0003041,2]
[311571132,1705252267041,-500.0,0.0003041,2]
[311571133,1705252267051,-500.0,0.0003041,2]
[311571134,1705252267061,-500.0,0.0003041,2]
[311571135,1705252267071,-500.0,0.0003041,2]
[311571136,1705252267081,-7583.02,0.0003041,2]
[311571137,1705252267092,-2010.65,0.0003041,2]
[311571138,1705252267101,-500.0,0.0003041,2]
[311571139,1705252267111,-151.0,0.0003041,7]
[311571140,1705252267123,-151.0,0.0003041,7]
[311571141,1705252267133,-151.0,0.0003041,7]
[311571142,1705252267143,-160.66968604,0.00030584,18]
[311571143,1705252267153,-210.0,0.0003059,2]
[311571144,1705252267164,-294.0,0.0003059,2]
[311571145,1705252267174,-158.27,0.00030634,2]
[311571146,1705252267184,-205.0,0.00030655,5]
[311571147,1705252267194,-31406.87050793,0.00030681,2]
[311571148,1705252267204,-300.0,0.00030683,2]
[311571149,1705252267214,-784.69,0.00030684,2]
[311571150,1705252267225,-500.0,0.00030684,2]
[311571151,1705252267235,-500.0,0.00030684,2]
[311571152,1705252267248,-500.0,0.00030684,2]
[311571153,1705252267258,-500.0,0.00030684,2]
[311571154,1705252267269,-1131.44,0.00030684,2]
[311571155,1705252267280,-500.0,0.00030684,2]
[311571156,1705252267290,-1240.44,0.00030684,2]
[311571157,1705252267299,-524.66,0.00030684,2]
[311571158,1705252267310,-500.0,0.00030684,2]
[311571159,1705252267321,-1232.05,0.00030684,2]
[311571160,1705252267331,-500.0,0.00030684,2]
[311571161,1705252267341,-767.48,0.00030684,2]
[311571162,1705252267351,-500.0,0.00030684,2]
[311571163,1705252267361,-1126.41,0.00030684,2]
[311571164,1705252267372,-500.0,0.00030684,2]
[311571165,1705252267382,-927.58,0.00030684,2]
[311571166,1705252267393,-500.0,0.00030684,2]
[311571167,1705252267404,-1002.34,0.00030684,2]
[311571168,1705252267414,-500.0,0.00030684,2]
[311571169,1705252267424,-500.0,0.00030684,2]
[311571170,1705252267435,-500.0,0.00030684,2]
[311571171,1705252267445,-500.0,0.00030684,2]
[311571172,1705252267454,-576.02,0.00030684,2]
[311571173,1705252267465,-1451.92,0.00030684,2]
[311571174,1705252267475,-848.75,0.00030684,2]
[311571175,1705252267485,-500.0,0.00030684,2]
[311571176,1705252267495,-1177.6,0.00030684,2]
[311571177,1705252267505,-1755.06,0.00030684,2]
[311571178,1705252267517,-500.0,0.00030684,2]
[311571179,1705252267527,-1716.01,0.00030684,2]
[311571180,1705252267537,-504.19199434,0.00030684,2]
[311571181,1705252267547,-500.0,0.00030684,2]
[311571182,1705252267557,-1136.11,0.00030684,2]
[311571183,1705252267567,-500.0,0.00030684,2]
[311571184,1705252267576,-647.22,0.00030684,2]
[311571185,1705252267586,-500.0,0.00030684,2]
[311571186,1705252267596,-1382.37,0.00030684,2]
[311571187,1705252267606,-500.0,0.00030684,2]
[311571188,1705252267615,-500.0,0.00030684,2]
[311571189,1705252267625,-836.86,0.00030684,2]
[311571190,1705252267634,-500.0,0.00030684,2]
[311571191,1705252267644,-865.23,0.00030684,2]
[311571192,1705252267653,-500.0,0.00030684,2]
[311571193,1705252267663,-500.0,0.00030684,2]
[311571194,1705252267673,-500.0,0.00030684,2]
[311571195,1705252267682,-501.82889378,0.00030684,2]
[311571196,1705252267691,-500.0,0.00030684,2]
[311571197,1705252267701,-500.0,0.00030684,2]
[311571198,1705252267711,-500.0,0.00030684,2]
[311571199,1705252267721,-500.0,0.00030684,2]
[311571200,1705252267730,-863.21,0.00030684,2]
[311571201,1705252267740,-500.0,0.00030684,2]
[311571202,1705252267753,-1116.11,0.00030684,2]
[311571203,1705252267763,-1335.88,0.00030684,2]
[311571204,1705252267773,-1690.6,0.00030684,2]
[311571205,1705252267782,-1241.32,0.00030684,2]
[311571206,1705252267792,-500.0,0.00030684,2]
[311571207,1705252267802,-1048.27,0.00030684,2]
[311571208,1705252267811,-1127.62,0.00030684,2]
[311571209,1705252267821,-2021.1,0.00030684,2]
[311571210,1705252267830,-186.25759092,0.00030684,2]
[311571211,1705252267840,-666.2,0.00030684,2]
[311571212,1705252267849,-835.47,0.00030684,2]
[311571213,1705252267859,-500.0,0.00030684,2]
[311571214,1705252267869,-541.20526194,0.00030684,2]
[311571215,1705252267878,-502.98495394,0.00030684,2]
[311571216,1705252267888,-500.0,0.00030684,2]
[311571217,1705252267897,-500.0,0.00030684,2]
[311571218,1705252267907,-720.99,0.00030684,2]
[311571219,1705252267917,-1153.09,0.00030684,2]
[311571220,1705252267926,-804.23,0.00030684,2]
[311571221,1705252267936,-500.0,0.00030684,2]
[311571222,1705252267946,-1037.19,0.00030684,2]
[311571223,1705252267955,-1078.01,0.00030684,2]
[311571224,1705252267964,-1900.62,0.00030684,2]
[311571225,1705252267974,-500.0,0.00030684,2]
[311571226,1705252267983,-824.07,0.00030684,2]
[311571227,1705252267994,-2002.51,0.00030684,2]
[311571228,1705252268003,-678.83,0.00030684,2]
[311571229,1705252268013,-959.7,0.00030684,2]
[311571230,1705252268023,-500.0,0.00030684,2]
[311571231,1705252268033,-500.0,0.00030684,2]
[311571232,1705252268043,-500.0,0.00030684,2]
[311571233,1705252268053,-500.0,0.00030684,2]
[311571234,1705252268063,-650.03,0.00030684,2]
[311571235,1705252268072,-500.0,0.00030684,2]
[311571236,1705252268082,-500.0,0.00030684,2]
[311571237,1705252268092,-500.0,0.00030684,2]
[311571238,1705252268101,-1629.93,0.00030684,2]
[311571239,1705252268111,-1040.72,0.00030684,2]
[311571240,1705252268121,-1885.14,0.00030684,2]
[311571241,1705252268130,-2041.9,0.00030684,2]
[311571242,1705252268140,-500.0,0.00030684,2]
[311571243,1705252268150,-500.0,0.00030684,2]
[311571244,1705252268159,-500.0,0.00030684,2]
[311571245,1705252268169,-500.0,0.00030684,2]
[311571246,1705252268179,-500.0,0.00030684,2]
[311571247,1705252268188,-500.0,0.00030684,2]
[311571248,1705252268197,-500.0,0.00030684,2]
[311571249,1705252268207,-500.0,0.00030684,2]
[311571250,1705252268216,-1619.28,0.00030684,2]
[311571251,1705252268226,-500.0,0.00030684,2]
[311571252,1705252268235,-500.0,0.00030684,2]
[311571253,1705252268247,-820.3,0.00030684,2]
[311571254,1705252268257,-2023.36,0.00030684,2]
[311571255,1705252268267,-500.0,0.00030684,2]
[311571256,1705252268276,-1307.54,0.00030684,2]
[311571257,1705252268286,-662.33,0.00030684,2]
[311571258,1705252268296,-500.0,0.00030684,2]
[311571259,1705252268306,-500.0,0.00030684,2]
[311571260,1705252268315,-500.0,0.00030684,2]
[311571261,1705252268325,-500.0,0.00030684,2]
[311571262,1705252268335,-500.0,0.00030684,2]
[311571263,1705252268346,-500.0,0.00030684,2]
[311571264,1705252268356,-1167.96,0.00030684,2]
[311571265,1705252268367,-1114.79,0.00030684,2]
[311571266,1705252268377,-509.6122612,0.00030684,2]
[311571267,1705252268387,-795.11,0.00030684,2]
[311571268,1705252268397,-500.0,0.00030684,2]
[311571269,1705252268407,-500.0,0.00030684,2]
[311571270,1705252268417,-500.0,0.00030684,2]
[311571271,1705252268426,-500.0,0.00030684,2]
[311571272,1705252268436,-500.0,0.00030684,2]
[311571273,1705252268446,-500.0,0.00030684,2]
[311571274,1705252268455,-500.0,0.00030684,2]
[311571275,1705252268465,-239.37886735,0.00030684,2]
[311571276,1705252268474,-500.0,0.00030684,2]
[311571277,1705252268484,-508.28,0.00030684,2]
[311571278,1705252268496,-500.0,0.00030684,2]
[311571279,1705252268505,-500.0,0.00030684,2]
[311571280,1705252268516,-227.64335551,0.00030684,2]
[311571281,1705252268525,-850.9,0.00030684,2]
[311571282,1705252268534,-823.12,0.00030684,2]
[311571283,1705252268544,-2060.81,0.00030684,2]
[311571284,1705252268553,-379.45489863,0.00030684,2]
[311571285,1705252268562,-500.0,0.00030684,2]
[311571286,1705252268572,-1110.75,0.00030684,2]
[311571287,1705252268582,-709.7,0.00030684,2]
[311571288,1705252268591,-500.0,0.00030684,2]
[311571289,1705252268600,-500.0,0.00030684,2]
[311571290,1705252268610,-664.23,0.00030684,2]
[311571291,1705252268619,-500.0,0.00030684,2]
[311571292,1705252268629,-1023.27,0.00030684,2]
[311571293,1705252268639,-733.79,0.00030684,2]
[311571294,1705252268649,-3195.49,0.00030684,2]
[311571295,1705252268658,-500.0,0.00030684,2]
[311571296,1705252268668,-306.12017942,0.00030684,2]
[311571297,1705252268677,-500.0,0.00030684,2]
[311571298,1705252268687,-500.0,0.00030684,2]
[311571299,1705252268998,-1885.84,0.00030684,2]
[311571300,1705252269009,-500.0,0.00030684,2]
[311571301,1705252269018,-500.0,0.00030684,2]
[311571302,1705252269028,-365.56,0.00030684,2]
[311571303,1705252269037,-518.41026967,0.00030684,2]
[311571304,1705252269046,-757.2,0.00030684,2]
[311571305,1705252269055,-500.0,0.00030684,2]
[311571306,1705252269065,-500.0,0.00030684,2]
[311571307,1705252269074,-500.0,0.00030684,2]
[311571308,1705252269083,-500.0,0.00030684,2]
[311571309,1705252269092,-500.0,0.00030684,2]
[311571310,1705252269101,-345.3063026,0.00030684,2]
[311571311,1705252269110,-500.0,0.00030684,2]
[311571312,1705252269119,-863.68,0.00030684,2]
[311571313,1705252269129,-500.0,0.00030684,2]
[311571314,1705252269139,-500.0,0.00030684,2]
[311571315,1705252269148,-500.0,0.00030684,2]
[311571316,1705252269158,-829.78,0.00030684,2]
[311571317,1705252269167,-500.0,0.00030684,2]
[311571318,1705252269177,-1020.24,0.00030684,2]
[311571319,1705252269186,-917.51,0.00030684,2]
[311571320,1705252269195,-500.0,0.00030684,2]
[311571321,1705252269205,-1281.11,0.00030684,2]
[311571322,1705252269214,-500.0,0.00030684,2]
[311571323,1705252269224,-600.41,0.00030684,2]
[311571324,1705252269234,-1227.04,0.00030684,2]
[311571325,1705252269244,-500.0,0.00030684,2]
[311571326,1705252269254,-500.0,0.00030684,2]
[311571327,1705252269264,-500.0,0.00030684,2]
[311571328,1705252269274,-1999.83,0.00030684,2]
[311571329,1705252269283,-500.0,0.00030684,2]
[311571330,1705252269293,-746.49,0.00030684,2]
[311571331,1705252269303,-1132.45,0.00030684,2]
[311571332,1705252269313,-500.0,0.00030684,2]
[311571333,1705252269322,-1460.45,0.00030684,2]
[311571334,1705252269332,-509.57765978,0.00030684,2]
[311571335,1705252269341,-500.0,0.00030684,2]
[311571336,1705252269351,-500.0,0.00030684,2]
[311571337,1705252269360,-1320.94,0.00030684,2]
[311571338,1705252269370,-722.68,0.00030684,2]
[311571339,1705252269380,-500.0,0.00030684,2]
[311571340,1705252269390,-1205.87,0.00030684,2]
[311571341,1705252269399,-500.0,0.00030684,2]
[311571342,1705252269409,-500.0,0.00030684,2]
[311571343,1705252269418,-500.0,0.00030684,2]
[311571344,1705252269428,-1773.28,0.00030684,2]
[311571345,1705252269437,-563.75,0.00030684,2]
[311571346,1705252269447,-500.0,0.00030684,2]
[311571347,1705252269456,-810.08,0.00030684,2]
[311571348,1705252269465,-500.0,0.00030684,2]
[311571349,1705252269475,-895.09,0.00030684,2]
[311571350,1705252269484,-1207.56,0.00030684,2]
[311571351,1705252269495,-505.71190594,0.00030684,2]
[311571352,1705252269505,-1058.04,0.00030684,2]
[311571353,1705252269514,-2542.75,0.00030684,2]
[311571354,1705252269523,-506.01595554,0.00030684,2]
[311571355,1705252269532,-500.0,0.00030684,2]
[311571356,1705252269541,-500.0,0.00030684,2]
[311571357,1705252269550,-1000.0,0.00030684,2]
[311571358,1705252269559,-842.4,0.00030684,2]
[311571359,1705252269568,-500.0,0.00030684,2]
[311571360,1705252269577,-500.0,0.00030684,2]
[311571361,1705252269586,-500.0,0.00030684,2]
[311571362,1705252269595,-500.0,0.00030684,2]
[311571363,1705252269604,-1525.23,0.00030684,2]
[311571364,1705252269613,-500.0,0.00030684,2]
[311571365,1705252269622,-500.0,0.00030684,2]
[311571366,1705252269631,-1991.27,0.00030684,2]
[311571367,1705252269640,-500.0,0.00030684,2]
[311571368,1705252269649,-500.0,0.00030684,2]
[311571369,1705252269658,-726.91,0.00030684,2]
[311571370,1705252269666,-505.94666236,0.00030684,2]
[311571371,1705252269676,-500.0,0.00030684,2]
[311571372,1705252269685,-307.78807774,0.00030684,2]
[311571373,1705252269694,-681.84,0.00030684,2]
[311571374,1705252269703,-1443.03,0.00030684,2]
[311571375,1705252269712,-500.0,0.00030684,2]
[311571376,1705252269721,-1460.0,0.00030684,2]
[311571377,1705252269730,-500.0,0.00030684,2]
[311571378,1705252269739,-500.0,0.00030684,2]
[311571379,1705252269750,-1061.14,0.00030684,2]
[311571380,1705252269759,-500.0,0.00030684,2]
[311571381,1705252269768,-1092.47,0.00030684,2]
[311571382,1705252269778,-500.0,0.00030684,2]
[311571383,1705252269787,-1128.45,0.00030684,2]
[311571384,1705252269797,-500.0,0.00030684,2]
[311571385,1705252269807,-500.0,0.00030684,2]
[311571386,1705252269817,-500.0,0.00030684,2]
[311571387,1705252269827,-204.16182843,0.00030684,2]
[311571388,1705252269836,-500.0,0.00030684,2]
[311571389,1705252269846,-930.07,0.00030684,2]
[311571390,1705252269856,-575.58,0.00030684,2]
[311571391,1705252269866,-804.22,0.00030684,2]
[311571392,1705252269876,-792.09,0.00030684,2]
[311571393,1705252269885,-1171.52,0.00030684,2]
[311571394,1705252269895,-500.0,0.00030684,2]
[311571395,1705252269904,-560.99,0.00030684,2]
[311571396,1705252269914,-500.0,0.00030684,2]
[311571397,1705252269923,-500.0,0.00030684,2]
[311571398,1705252269932,-500.0,0.00030684,2]
[311571399,1705252269941,-1559.96,0.00030684,2]
[311571400,1705252269951,-500.0,0.00030684,2]
[311571401,1705252269960,-1868.49,0.00030684,2]
[311571402,1705252269970,-500.0,0.00030684,2]
[311571403,1705252269980,-706.1,0.00030684,2]
[311571404,1705252269989,-538.67,0.00030684,2]
[311571405,1705252269999,-500.0,0.00030684,2]
[311571406,1705252270008,-954.86,0.00030684,2]
[311571407,1705252270018,-500.0,0.00030684,2]
[311571408,1705252270028,-918.75,0.00030684,2]
[311571409,1705252270037,-2188.29,0.00030684,2]
[311571410,1705252270047,-500.0,0.00030684,2]
[311571411,1705252270056,-500.0,0.00030684,2]
[311571412,1705252270066,-500.0,0.00030684,2]
[311571413,1705252270075,-986.25,0.00030684,2]
[311571414,1705252270086,-500.0,0.00030684,2]
[311571415,1705252270096,-591.33,0.00030684,2]
[311571416,1705252270115,-1308.37,0.00030684,2]
[311571417,1705252270131,-913.77,0.00030684,2]
[311571418,1705252270141,-500.0,0.00030684,2]
[311571419,1705252270150,-500.0,0.00030684,2]
[311571420,1705252270160,-500.0,0.00030684,2]
[311571421,1705252270169,-500.0,0.00030684,2]
[311571422,1705252270178,-815.77,0.00030684,2]
[311571423,1705252270187,-500.0,0.00030684,2]
[311571424,1705252270196,-500.0,0.00030684,2]
[311571425,1705252270205,-500.0,0.00030684,2]
[311571426,1705252270214,-500.0,0.00030684,2]
[311571427,1705252270224,-1262.51,0.00030684,2]
[311571428,1705252270233,-500.0,0.00030684,2]
[311571429,1705252270244,-500.0,0.00030684,2]
[311571430,1705252270253,-1000.0,0.00030684,2]
[311571431,1705252270262,-500.0,0.00030684,2]
[311571432,1705252270271,-512.07921564,0.00030684,2]
[311571433,1705252270280,-1331.58,0.00030684,2]
[311571434,1705252270289,-1516.94,0.00030684,2]
[311571435,1705252270299,-562.07,0.00030684,2]
[311571436,1705252270308,-643.99,0.00030684,2]
[311571437,1705252270318,-629.6,0.00030684,2]
[311571438,1705252270328,-748.5,0.00030684,2]
[311571439,1705252270338,-1331.6,0.00030684,2]
[311571440,1705252270347,-809.43,0.00030684,2]
[311571441,1705252270357,-258.13702894,0.00030684,2]
[311571442,1705252270366,-1249.64,0.00030684,2]
[311571443,1705252270375,-500.0,0.00030684,2]
[311571444,1705252270385,-500.0,0.00030684,2]
[311571445,1705252270395,-1260.42,0.00030684,2]
[311571446,1705252270405,-730.81,0.00030684,2]
[311571447,1705252270414,-500.0,0.00030684,2]
[311571448,1705252270425,-977.41,0.00030684,2]
[311571449,1705252270434,-500.0,0.00030684,2]
[311571450,1705252270443,-706.44,0.00030684,2]
[311571451,1705252270452,-704.42,0.00030684,2]
[311571452,1705252270462,-500.0,0.00030684,2]
[311571453,1705252270470,-500.0,0.00030684,2]
[311571454,1705252270480,-500.0,0.00030684,2]
[311571455,1705252270489,-1054.04,0.00030684,2]
[311571456,1705252270500,-506.00683986,0.00030684,2]
[311571457,1705252270510,-500.0,0.00030684,2]
[311571458,1705252270519,-500.0,0.00030684,2]
[311571459,1705252270529,-500.0,0.00030684,2]
[311571460,1705252270538,-1099.5,0.00030684,2]
[311571461,1705252270548,-500.0,0.00030684,2]
[311571462,1705252270557,-500.0,0.00030684,2]
[311571463,1705252270566,-500.0,0.00030684,2]
[311571464,1705252270575,-500.0,0.00030684,2]
[311571465,1705252270585,-199.52741416,0.00030684,2]
[311571466,1705252270594,-514.13,0.00030684,2]
[311571467,1705252270603,-743.27,0.00030684,2]
[311571468,1705252270612,-835.81,0.00030684,2]
[311571469,1705252270623,-820.16,0.00030684,2]
[311571470,1705252270633,-854.02,0.00030684,2]
[311571471,1705252270642,-500.7,0.00030684,2]
[311571472,1705252270652,-1035.25,0.00030684,2]
[311571473,1705252270661,-506.46882475,0.00030684,2]
[311571474,1705252270670,-2187.41,0.00030684,2]
[311571475,1705252270680,-500.0,0.00030684,2]
[311571476,1705252270689,-500.0,0.00030684,2]
[311571477,1705252270698,-746.89,0.00030684,2]
[311571478,1705252270708,-500.0,0.00030684,2]
[311571479,1705252270717,-500.0,0.00030684,2]
[311571480,1705252270727,-1874.06,0.00030684,2]
[311571481,1705252270737,-500.0,0.00030684,2]
[311571482,1705252270748,-500.0,0.00030684,2]
[311571483,1705252270759,-500.0,0.00030684,2]
[311571484,1705252270768,-500.0,0.00030684,2]
[311571485,1705252270778,-1599.15,0.00030684,2]
[311571486,1705252270788,-500.0,0.00030684,2]
[311571487,1705252270797,-2449.88,0.00030684,2]
[311571488,1705252270806,-500.0,0.00030684,2]
[311571489,1705252270816,-500.0,0.00030684,2]
[311571490,1705252270826,-816.92,0.00030684,2]
[311571491,1705252270836,-500.0,0.00030684,2]
[311571492,1705252270846,-500.0,0.00030684,2]
[311571493,1705252270855,-607.62,0.00030684,2]
[311571494,1705252270864,-500.0,0.00030684,2]
[311571495,1705252270874,-500.0,0.00030684,2]
[311571496,1705252270883,-1717.02,0.00030684,2]
[311571497,1705252270893,-500.0,0.00030684,2]
[311571498,1705252270903,-500.0,0.00030684,2]
[311571499,1705252270912,-505.47018032,0.00030684,2]
[311571500,1705252270922,-500.0,0.00030684,2]
[311571501,1705252270931,-500.0,0.00030684,2]
[311571502,1705252270941,-500.0,0.00030684,2]
[311571503,1705252270950,-585.51,0.00030684,2]
[311571504,1705252270959,-846.57,0.00030684,2]
[311571505,1705252270968,-1192.35,0.00030684,2]
[311571506,1705252270977,-505.63789009,0.00030684,2]
[311571507,1705252270986,-556.01,0.00030684,2]
[311571508,1705252270996,-500.0,0.00030684,2]
[311571509,1705252271006,-311.49,0.00030684,2]
[311571510,1705252271015,-753.23,0.00030684,2]
[311571511,1705252271024,-1217.56,0.00030684,2]
[311571512,1705252271034,-564.68,0.00030684,2]
[311571513,1705252271043,-2611.38,0.00030684,2]
[311571514,1705252271054,-1646.67,0.00030684,2]
[311571515,1705252271063,-500.0,0.00030684,2]
[311571516,1705252271072,-500.0,0.00030684,2]
[311571517,1705252271081,-500.0,0.00030684,2]
[311571518,1705252271090,-602.69,0.00030684,2]
[311571519,1705252271100,-500.0,0.00030684,2]
[311571520,1705252271109,-500.0,0.00030684,2]
[311571521,1705252271118,-2089.38,0.00030684,2]
[311571522,1705252271128,-1435.9,0.00030684,2]
[311571523,1705252271137,-500.0,0.00030684,2]
[311571524,1705252271146,-500.0,0.00030684,2]
[311571525,1705252271155,-468.74178989,0.00030684,2]
[311571526,1705252271165,-500.0,0.00030684,2]
[311571527,1705252271174,-954.59,0.00030684,2]
[311571528,1705252271184,-1925.77,0.00030684,2]
[311571529,1705252271193,-500.0,0.00030684,2]
[311571530,1705252271203,-652.19,0.00030684,2]
[311571531,1705252271212,-504.35795584,0.00030684,2]
[311571532,1705252271222,-552.02,0.00030684,2]
[311571533,1705252271231,-1686.3,0.00030684,2]
[311571534,1705252271240,-500.0,0.00030684,2]
[311571535,1705252271350,-531.8,0.00030684,2]
[311571536,1705252271359,-500.0,0.00030684,2]
[311571537,1705252271369,-500.0,0.00030684,2]
[311571538,1705252271378,-500.0,0.00030684,2]
[311571539,1705252271387,-500.0,0.00030684,2]
[311571540,1705252271397,-500.0,0.00030684,2]
[311571541,1705252271406,-1006.64,0.00030684,2]
[311571542,1705252271415,-500.0,0.00030684,2]
[311571543,1705252271425,-500.0,0.00030684,2]
[311571544,1705252271434,-500.0,0.00030684,2]
[311571545,1705252271443,-500.0,0.00030684,2]
[311571546,1705252271453,-500.0,0.00030684,2]
[311571547,1705252271462,-500.0,0.00030684,2]
[311571548,1705252271471,-504.53772516,0.00030684,2]
[311571549,1705252271480,-500.0,0.00030684,2]